[Event "Reykjavik Open 2022"]
[Site "Reykjavik"]
[Date "2022.04.10"]
[Round "6.31"]
[White "Bartelt, Max Peter"]
[Black "Large, Peter G"]
[Result "1/2-1/2"]
[ECO "A46"]
[WhiteElo "1923"]
[BlackElo "2335"]
[Annotator "RC"]
[PlyCount "141"]
[EventDate "2022.04.06"]
[EventCountry "ISL"]
[SourceTitle "playchess.com"]
[Source "ChessBase"]
[SourceQuality "1"]
[TimeControl "40/5400+30:1800+30"]

1. d4 {[%emt 0:02:50]} e6 {[%emt 0:00:08]} 2. Nf3 {[%emt 0:00:15]} Nf6 {[%emt 0:00:08]} 3. g3 {[%emt 0:00:06]} b5 {[%emt 0:00:29]} 4. Bg2 {[%emt 0:00:11]} Bb7 {[%emt 0:00:06]} 5. O-O {[%emt 0:00:06]} c5 {[%emt 0:00:03]} 6. a4 {[%emt 0:04:15]} b4 {[%emt 0:00:09]} 7. c3 {[%emt 0:01:17]} Na6 {[%emt 0:04:17]} 8. b3 {[%emt 0:07:54]} bxc3 {[%emt 0:06:57]} 9. Nxc3 {[%emt 0:00:25]} Be7 {[%emt 0:02:18]} 10. Ba3 {[%emt 0:06:37]} O-O {[%emt 0:04:02]} 11. dxc5 {[%emt 0:03:43]} Bxc5 {[%emt 0:02:25]} 12. Bxc5 {[%emt 0:01:16]} Nxc5 {[%emt 0:00:08]} 13. b4 {[%emt 0:01:03]} Nce4 {[%emt 0:01:04]} 14. Nxe4 {[%emt 0:00:19]} Bxe4 {[%emt 0:00:07]} 15. Qd6 {[%emt 0:02:32]} Qb8 {[%emt 0:09:49]} 16. Rfd1 {[%emt 0:00:40]} Qb7 {[%emt 0:08:47]} 17. Ne1 {[%emt 0:08:15]} Bxg2 {[%emt 0:02:32]} 18. Nxg2 {[%emt 0:00:14]} Rfc8 {[%emt 0:03:04]} 19. Nf4 {[%emt 0:07:40]} Rc6 {[%emt 0:06:12]} 20. Qd4 {[%emt 0:07:23]} Rac8 {[%emt 0:00:41]} 21. b5 {[%emt 0:03:35]} Rc4 {[%emt 0:03:13]} 22. Qd6 {[%emt 0:01:14]} Qe4 {[%emt 0:11:15]} 23. Qd3 {[%emt 0:04:44]} Qb7 {[%emt 0:17:36]} 24. Qd6 {[%emt 0:07:10]} h6 {[%emt 0:00:23]} 25. Ra2 {[%emt 0:02:08]} g5 {[%emt 0:04:32]} 26. Nd3 {[%emt 0:01:54]} Qd5 {[%emt 0:06:27]} 27. Ne5 {[%emt 0:03:21]} Qxd6 {[%emt 0:05:33]} 28. Rxd6 {[%emt 0:00:05]} R4c7 {[%emt 0:00:15]} 29. f3 {[%emt 0:00:41]} Kf8 {[%emt 0:00:21]} 30. Rad2 {[%emt 0:01:06]} Ke7 {[%emt 0:00:05]} 31. a5 {[%emt 0:05:54]} Rb7 {[%emt 0:00:07]} 32. b6 {[%emt 0:03:55]} axb6 {[%emt 0:01:07]} 33. a6 {[%emt 0:00:40]} Ra7 {[%emt 0:01:30]} 34. Rxb6 {[%emt 0:00:06]} Rc5 {[%emt 0:00:45]} 35. Nd3 {[%emt 0:01:48]} Rd5 {[%emt 0:00:51]} 36. e4 {[%emt 0:00:28]} Rd4 {[%emt 0:00:18]} 37. Kf2 {[%emt 0:00:35]} Ne8 {[%emt 0:00:17]} 38. Ke3 {[%emt 0:00:15]} Ra4 {[%emt 0:00:27]} 39. Nc5 {[%emt 0:00:50]} Ra3+ {[%emt 0:00:10]} 40. Ke2 {[%emt 0:00:00]} Ra5 {[%emt 0:00:00]} 41. Rb7 {[%emt 0:01:02]} Nd6 {[%emt 0:05:47]} 42. Rxa7 {[%emt 0:00:17]} Rxc5 {[%emt 0:00:06]} 43. Ra2 {[%emt 0:00:51]} Nb5 {[%emt 0:00:06]} 44. Ra5 {[%emt 0:04:37]} Nd4+ {[%emt 0:04:56]} 45. Kd3 {[%emt 0:00:04]} Rxa5 {[%emt 0:00:04]} 46. Kxd4 {[%emt 0:00:04]} Kd6 {[%emt 0:00:08]} 47. e5+ {[%emt 0:01:58]} Kc6 {[%emt 0:00:19]} 48. f4 {[%emt 0:00:57]} Ra2 {[%emt 0:01:08]} 49. Ra8 {[%emt 0:00:58]} Ra4+ {[%emt 0:05:46]} 50. Ke3 {[%emt 0:00:23]} gxf4+ {[%emt 0:00:13]} 51. gxf4 {[%emt 0:00:04]} Kd5 {[%emt 0:00:24]} 52. Kf3 {[%emt 0:02:18]} h5 {[%emt 0:00:25]} 53. Rf8 {[%emt 0:01:54]} Ra3+ {[%emt 0:00:14]} 54. Kg2 {[%emt 0:00:27]} Rxa6 {[%emt 0:01:37]} 55. Kg3 {[%emt 0:02:14]} Ke4 {[%emt 0:08:03]} 56. Rxf7 {[%emt 0:00:08]} d5 {[%emt 0:04:43]} 57. exd6 {[%emt 0:06:58]} Rxd6 {[%emt 0:00:16]} 58. Rf6 {[%emt 0:01:21]} Ra6 {[%emt 0:00:59]} 59. Kh4 {[%emt 0:01:01]} Ra5 {[%emt 0:00:21]} 60. Rxe6+ {[%emt 0:01:38]} Kxf4 {[%emt 0:00:08]} 61. Rf6+ {[%emt 0:00:03]} Rf5 {[%emt 0:01:12]} 62. Rh6 {[%emt 0:01:18]} Ke5 {[%emt 0:00:09]} 63. Rxh5 {[%emt 0:00:27]} Rxh5+ {[%emt 0:00:07]} 64. Kxh5 {[%emt 0:00:04]} Kf6 {[%emt 0:00:07]} 65. Kh6 {[%emt 0:00:03]} Kf7 {[%emt 0:00:06]} 66. Kh7 {[%emt 0:00:08]} Kf8 {[%emt 0:00:06]} 67. h4 {[%emt 0:00:04]} Kf7 {[%emt 0:00:03]} 68. h5 {[%emt 0:00:02]} Kf8 {[%emt 0:00:05]} 69. h6 {[%emt 0:00:03]} Kf7 {[%emt 0:00:04]} 70. Kh8 {[%emt 0:00:05]} Kf8 {[%emt 0:00:04]} 71. h7 {[%emt 0:00:34]} 1/2-1/2

[Event "Reykjavik Open 2022"]
[Site "Reykjavik"]
[Date "2022.04.10"]
[Round "6.32"]
[White "Hartmann, Wolfgang"]
[Black "Berdnyk, Mariia"]
[Result "0-1"]
[ECO "E14"]
[WhiteElo "1917"]
[BlackElo "2287"]
[Annotator "NA RC"]
[PlyCount "74"]
[EventDate "2022.04.06"]
[EventCountry "ISL"]
[SourceTitle "playchess.com"]
[Source "ChessBase"]
[SourceQuality "1"]
[TimeControl "40/5400+30:1800+30"]

1. d4 {[%emt 0:00:02]} Nf6 {[%emt 0:00:14]} 2. Nf3 {[%emt 0:00:10]} e6 {[%emt 0:00:35]} 3. e3 {[%emt 0:00:15]} b6 {[%emt 0:00:52]} 4. Bd3 {[%emt 0:00:58]} Bb7 {[%emt 0:00:19]} 5. O-O {[%emt 0:00:36]} c5 {[%emt 0:00:28]} 6. b3 {[%emt 0:03:04]} Be7 {[%emt 0:03:56]} 7. Bb2 {[%emt 0:00:32]} O-O {[%emt 0:00:33]} 8. c4 {[%emt 0:03:59]} cxd4 {[%emt 0:02:15]} 9. exd4 {[%emt 0:02:43]} d5 {[%emt 0:00:24]} 10. Nbd2 {[%emt 0:06:00]} Nc6 {[%emt 0:06:04]} 11. Rc1 {[%emt 0:01:58]} Rc8 {[%emt 0:02:45]} 12. Re1 {[%emt 0:01:34]} Rc7 {[%emt 0:06:48]} 13. Ne5 {[%emt 0:11:20]} dxc4 {[%emt 0:01:18]} 14. Ndxc4 {[%emt 0:03:45]} Nb4 {[%emt 0:00:44]} 15. Bb1 {[%emt 0:02:32]} Nbd5 {[%emt 0:01:44]} 16. a3 {[%emt 0:07:15]} Qa8 {[%emt 0:06:34]} 17. g3 {[%emt 0:13:40]} Rfc8 {[%emt 0:00:23]} 18. Qd3 {[%emt 0:06:58]} g6 {[%emt 0:11:48]} 19. f4 {[%emt 0:08:04]} a6 {[%emt 0:05:27]} 20. Qd2 {[%emt 0:10:27]} b5 {[%emt 0:03:59]} 21. Na5 {[%emt 0:02:26]} b4 {[%emt 0:00:23]} 22. Nxb7 {[%emt 0:01:08]} Qxb7 {[%emt 0:00:24]} 23. Rxc7 {[%emt 0:02:07]} Rxc7 {[%emt 0:00:16]} 24. a4 {[%emt 0:00:15]} Nc3 {[%emt 0:00:31]} 25. Bd3 {[%emt 0:01:26]} Nfd5 {[%emt 0:08:02]} 26. g4 {[%emt 0:01:00]} Bf6 {[%emt 0:01:56]} 27. f5 {[%emt 0:01:39]} exf5 {[%emt 0:01:44]} 28. gxf5 {[%emt 0:00:25]} Re7 {[%emt 0:00:05]} 29. fxg6 {[%emt 0:01:03]} hxg6 {[%emt 0:00:07]} 30. Bxc3 {[%emt 0:01:38]} bxc3 {[%emt 0:00:44]} 31. Qg2 {[%emt 0:02:08]} Bxe5 {[%emt 0:01:05]} 32. Rxe5 {[%emt 0:01:15]} Rxe5 {[%emt 0:00:24]} 33. dxe5 {[%emt 0:00:07]} Qb6+ {[%emt 0:02:25]} 34. Kh1 {[%emt 0:01:24]} Nf4 {[%emt 0:00:27]} 35. Qa8+ {[%emt 0:00:42]} Kg7 {[%emt 0:00:04]} 36. Qf3 {[%emt 0:01:42]} Nxd3 {[%emt 0:00:06]} 37. Qxd3 {[%emt 0:00:10]} Qc6+ {[%emt 0:00:01]} 0-1

[Event "Reykjavik Open 2022"]
[Site "Reykjavik"]
[Date "2022.04.10"]
[Round "6.33"]
[White "Mirza, Diana"]
[Black "Burlacu, Bogdan"]
[Result "0-1"]
[ECO "E90"]
[WhiteElo "1898"]
[BlackElo "2294"]
[Annotator "RC"]
[PlyCount "120"]
[EventDate "2022.04.06"]
[EventCountry "ISL"]
[SourceTitle "playchess.com"]
[Source "ChessBase"]
[SourceQuality "1"]
[TimeControl "40/5400+30:1800+30"]

1. d4 {[%emt 0:00:07]} Nf6 {[%emt 0:00:07]} 2. Nf3 {[%emt 0:00:06]} g6 {[%emt 0:00:12]} 3. c4 {[%emt 0:00:08]} Bg7 {[%emt 0:01:14]} 4. Nc3 {[%emt 0:00:07]} d6 {[%emt 0:00:33]} 5. e4 {[%emt 0:00:06]} O-O {[%emt 0:00:06]} 6. h3 {[%emt 0:00:06]} Na6 {[%emt 0:02:52]} 7. Be3 {[%emt 0:02:51]} c5 {[%emt 0:01:34]} 8. d5 {[%emt 0:07:28]} e6 {[%emt 0:06:01]} 9. Bd3 {[%emt 0:12:26]} exd5 {[%emt 0:02:15]} 10. exd5 {[%emt 0:01:35]} Nc7 {[%emt 0:07:31]} 11. a4 {[%emt 0:05:59]} b6 {[%emt 0:05:23]} 12. O-O {[%emt 0:03:32]} a6 {[%emt 0:00:54]} 13. Qd2 {[%emt 0:02:26]} Nfe8 {[%emt 0:31:23]} 14. Bg5 {[%emt 0:07:53]} f6 {[%emt 0:00:42]} 15. Bh6 {[%emt 0:04:16]} Bd7 {[%emt 0:09:03]} 16. Rfe1 {[%emt 0:15:20]} Rf7 {[%emt 0:06:25]} 17. Bxg7 {[%emt 0:02:18]} Nxg7 {[%emt 0:00:30]} 18. Ne4 {[%emt 0:00:38]} Qf8 {[%emt 0:00:11]} 19. Qf4 {[%emt 0:01:00]} Nge8 {[%emt 0:02:07]} 20. b3 {[%emt 0:01:48]} h6 {[%emt 0:07:38]} 21. Qg3 {[%emt 0:09:53]} f5 {[%emt 0:01:31]} 22. Ned2 {[%emt 0:02:21]} Qg7 {[%emt 0:02:14]} 23. Ra2 {[%emt 0:03:18]} Qf6 {[%emt 0:02:37]} 24. Nf1 {[%emt 0:03:40]} Ng7 {[%emt 0:01:16]} 25. Qf4 {[%emt 0:03:45]} g5 {[%emt 0:00:53]} 26. Qc1 {[%emt 0:01:13]} g4 {[%emt 0:00:52]} 27. hxg4 {[%emt 0:00:05]} fxg4 {[%emt 0:00:04]} 28. N3h2 {[%emt 0:00:18]} Raf8 {[%emt 0:04:11]} 29. f4 {[%emt 0:03:52]} Qxf4 {[%emt 0:00:54]} 30. Qxf4 {[%emt 0:00:04]} Rxf4 {[%emt 0:00:05]} 31. Re7 {[%emt 0:00:43]} R8f7 {[%emt 0:00:16]} 32. Rae2 {[%emt 0:00:36]} Kf8 {[%emt 0:01:18]} 33. Rxf7+ {[%emt 0:02:53]} Kxf7 {[%emt 0:00:05]} 34. g3 {[%emt 0:00:58]} Rd4 {[%emt 0:01:34]} 35. Rf2+ {[%emt 0:00:23]} Ke7 {[%emt 0:00:26]} 36. Bg6 {[%emt 0:00:21]} Be8 {[%emt 0:00:09]} 37. Bc2 {[%emt 0:01:53]} h5 {[%emt 0:01:15]} 38. Ne3 {[%emt 0:00:10]} b5 {[%emt 0:01:09]} 39. cxb5 {[%emt 0:00:24]} axb5 {[%emt 0:00:04]} 40. a5 {[%emt 0:00:00]} c4 {[%emt 0:00:00]} 41. bxc4 {[%emt 0:16:05]} bxc4 {[%emt 0:02:23]} 42. Rf4 {[%emt 0:04:34]} Rxf4 {[%emt 0:01:48]} 43. gxf4 {[%emt 0:00:01]} c3 {[%emt 0:03:52]} 44. Kf2 {[%emt 0:06:57]} Bf7 {[%emt 0:03:10]} 45. Be4 {[%emt 0:01:23]} Nge8 {[%emt 0:00:20]} 46. Nd1 {[%emt 0:01:09]} Nb5 {[%emt 0:01:34]} 47. a6 {[%emt 0:01:39]} Bxd5 {[%emt 0:03:06]} 48. Bd3 {[%emt 0:02:20]} Nec7 {[%emt 0:00:51]} 49. Nf1 {[%emt 0:01:36]} Bc4 {[%emt 0:02:48]} 50. Bg6 {[%emt 0:00:59]} Bxf1 {[%emt 0:00:41]} 51. Kxf1 {[%emt 0:00:37]} Nxa6 {[%emt 0:00:16]} 52. Nxc3 {[%emt 0:00:33]} Nxc3 {[%emt 0:00:06]} 53. Bxh5 {[%emt 0:00:03]} g3 {[%emt 0:00:08]} 54. Bf3 {[%emt 0:00:57]} Nc5 {[%emt 0:00:09]} 55. Kg2 {[%emt 0:00:18]} N5e4 {[%emt 0:00:15]} 56. f5 {[%emt 0:01:11]} Kf6 {[%emt 0:00:06]} 57. Bg4 {[%emt 0:00:07]} Kg5 {[%emt 0:00:27]} 58. Bh3 {[%emt 0:00:26]} Kf4 {[%emt 0:00:15]} 59. Kg1 {[%emt 0:00:48]} d5 {[%emt 0:00:13]} 60. Kf1 {[%emt 0:00:11]} d4 {[%emt 0:00:07]} 0-1

[Event "Reykjavik Open 2022"]
[Site "Reykjavik"]
[Date "2022.04.10"]
[Round "6.34"]
[White "Baecker, Niko"]
[Black "Valkama, Eero"]
[Result "0-1"]
[ECO "E52"]
[WhiteElo "1843"]
[BlackElo "2244"]
[Annotator "NA RC"]
[PlyCount "70"]
[EventDate "2022.04.06"]
[EventCountry "ISL"]
[SourceTitle "playchess.com"]
[Source "ChessBase"]
[SourceQuality "1"]
[TimeControl "40/5400+30:1800+30"]

1. d4 {[%emt 0:00:15]} Nf6 {[%emt 0:00:06]} 2. c4 {[%emt 0:00:07]} e6 {[%emt 0:00:05]} 3. Nc3 {[%emt 0:00:07]} Bb4 {[%emt 0:00:05]} 4. e3 {[%emt 0:00:33]} O-O {[%emt 0:00:08]} 5. Nf3 {[%emt 0:00:30]} d5 {[%emt 0:03:11]} 6. a3 {[%emt 0:10:06]} Bxc3+ {[%emt 0:01:52]} 7. bxc3 {[%emt 0:00:55]} c5 {[%emt 0:02:09]} 8. Bd3 {[%emt 0:09:16]} dxc4 {[%emt 0:01:09]} 9. Bxc4 {[%emt 0:03:45]} Nbd7 {[%emt 0:02:55]} 10. O-O {[%emt 0:05:09]} Qc7 {[%emt 0:05:10]} 11. Ba2 {[%emt 0:09:16]} b6 {[%emt 0:02:13]} 12. Bb2 {[%emt 0:02:19]} Bb7 {[%emt 0:01:56]} 13. Nd2 {[%emt 0:01:53]} e5 {[%emt 0:22:40]} 14. Rc1 {[%emt 0:02:36]} Rfe8 {[%emt 0:00:33]} 15. Re1 {[%emt 0:16:19]} Rad8 {[%emt 0:00:25]} 16. Nf1 {[%emt 0:04:56]} Nf8 {[%emt 0:08:21]} 17. f3 {[%emt 0:00:32]} Qe7 {[%emt 0:14:33]} 18. Qd2 {[%emt 0:01:53]} exd4 {[%emt 0:10:06]} 19. cxd4 {[%emt 0:00:58]} cxd4 {[%emt 0:00:18]} 20. exd4 {[%emt 0:00:26]} Qd7 {[%emt 0:02:06]} 21. Qf2 {[%emt 0:15:26]} Rxe1 {[%emt 0:00:32]} 22. Rxe1 {[%emt 0:00:08]} Nd5 {[%emt 0:06:28]} 23. Ng3 {[%emt 0:03:25]} Nf4 {[%emt 0:01:33]} 24. Bb1 {[%emt 0:06:29]} Bd5 {[%emt 0:00:50]} 25. Nf5 {[%emt 0:00:21]} Be6 {[%emt 0:00:13]} 26. Re5 {[%emt 0:03:03]} N8g6 {[%emt 0:07:16]} 27. Qe3 {[%emt 0:01:36]} Nxe5 {[%emt 0:02:38]} 28. Qxe5 {[%emt 0:00:15]} Bxf5 {[%emt 0:00:56]} 29. Bxf5 {[%emt 0:00:31]} Qd6 {[%emt 0:00:09]} 30. Qe1 {[%emt 0:01:50]} Qf6 {[%emt 0:00:47]} 31. Qe4 {[%emt 0:00:30]} g6 {[%emt 0:02:23]} 32. Qxf4 {[%emt 0:00:28]} Qxf5 {[%emt 0:00:01]} 33. Qd2 {[%emt 0:00:30]} Rc8 {[%emt 0:01:01]} 34. Bc3 {[%emt 0:00:36]} Qb1+ {[%emt 0:00:24]} 35. Kf2 {[%emt 0:00:07]} Qb3 {[%emt 0:00:04]} 0-1

[Event "Reykjavik Open 2022"]
[Site "Reykjavik"]
[Date "2022.04.10"]
[Round "6.35"]
[White "Mitra, Akash"]
[Black "Mahitosh Dey"]
[Result "0-1"]
[ECO "C50"]
[WhiteElo "1866"]
[BlackElo "2176"]
[Annotator "NA RC"]
[PlyCount "46"]
[EventDate "2022.04.06"]
[EventCountry "ISL"]
[SourceTitle "playchess.com"]
[Source "ChessBase"]
[SourceQuality "1"]
[TimeControl "40/5400+30:1800+30"]

1. e4 {[%emt 0:00:02]} e5 {[%emt 0:05:48]} 2. Bc4 {[%emt 0:02:34]} Nf6 {[%emt 0:01:23]} 3. d3 {[%emt 0:01:03]} Nc6 {[%emt 0:02:43]} 4. Nf3 {[%emt 0:01:08]} Bc5 {[%emt 0:00:56]} 5. Nc3 {[%emt 0:01:17]} d6 {[%emt 0:01:05]} 6. Bg5 {[%emt 0:03:48]} h6 {[%emt 0:00:24]} 7. Be3 {[%emt 0:00:48]} Bb6 {[%emt 0:03:45]} 8. a3 {[%emt 0:03:40]} O-O {[%emt 0:00:21]} 9. Qe2 {[%emt 0:01:57]} Nd4 {[%emt 0:01:50]} 10. Bxd4 {[%emt 0:01:39]} exd4 {[%emt 0:00:06]} 11. Na4 {[%emt 0:03:59]} d5 {[%emt 0:01:13]} 12. Nxb6 {[%emt 0:00:09]} axb6 {[%emt 0:00:12]} 13. Bb3 {[%emt 0:01:12]} c5 {[%emt 0:01:33]} 14. O-O-O {[%emt 0:05:04]} Be6 {[%emt 0:01:16]} 15. e5 {[%emt 0:02:38]} Nd7 {[%emt 0:00:10]} 16. Nd2 {[%emt 0:03:21]} b5 {[%emt 0:00:07]} 17. f4 {[%emt 0:00:32]} c4 {[%emt 0:00:52]} 18. Ba2 {[%emt 0:01:23]} Qa5 {[%emt 0:04:05]} 19. dxc4 {[%emt 0:01:01]} bxc4 {[%emt 0:02:42]} 20. g4 {[%emt 0:00:44]} c3 {[%emt 0:00:05]} 21. Nb3 {[%emt 0:00:30]} cxb2+ {[%emt 0:00:05]} 22. Kxb2 {[%emt 0:00:02]} Qxa3+ {[%emt 0:00:06]} 23. Ka1 {[%emt 0:00:07]} Qxa2# {[%emt 0:00:03]} 0-1

[Event "Reykjavik Open 2022"]
[Site "Reykjavik"]
[Date "2022.04.10"]
[Round "6.36"]
[White "Kumar, Sanjit S"]
[Black "Jaksland, Tim"]
[Result "0-1"]
[ECO "E32"]
[WhiteElo "1794"]
[BlackElo "2201"]
[Annotator "NA RC"]
[PlyCount "82"]
[EventDate "2022.04.06"]
[EventCountry "ISL"]
[SourceTitle "playchess.com"]
[Source "ChessBase"]
[SourceQuality "1"]
[TimeControl "40/5400+30:1800+30"]

1. d4 {[%emt 0:00:01]} Nf6 {[%emt 0:00:19]} 2. c4 {[%emt 0:00:09]} e6 {[%emt 0:00:10]} 3. Nc3 {[%emt 0:00:10]} Bb4 {[%emt 0:00:09]} 4. Qc2 {[%emt 0:00:07]} b6 {[%emt 0:00:46]} 5. e4 {[%emt 0:00:47]} c5 {[%emt 0:00:54]} 6. e5 {[%emt 0:09:34]} cxd4 {[%emt 0:01:50]} 7. a3 {[%emt 0:00:29]} Bxc3+ {[%emt 0:02:06]} 8. bxc3 {[%emt 0:00:07]} Ng8 {[%emt 0:00:05]} 9. cxd4 {[%emt 0:00:07]} Bb7 {[%emt 0:00:06]} 10. Bf4 {[%emt 0:05:48]} Ne7 {[%emt 0:01:52]} 11. Nf3 {[%emt 0:02:24]} Ng6 {[%emt 0:11:23]} 12. Bg3 {[%emt 0:02:30]} Bxf3 {[%emt 0:08:35]} 13. gxf3 {[%emt 0:00:10]} O-O {[%emt 0:08:41]} 14. Bd3 {[%emt 0:08:33]} Nc6 {[%emt 0:10:27]} 15. Qb2 {[%emt 0:05:34]} f5 {[%emt 0:09:41]} 16. f4 {[%emt 0:01:12]} Rc8 {[%emt 0:04:30]} 17. d5 {[%emt 0:10:38]} Na5 {[%emt 0:01:04]} 18. Rc1 {[%emt 0:04:47]} Rc5 {[%emt 0:00:45]} 19. d6 {[%emt 0:13:48]} Qa8 {[%emt 0:00:42]} 20. O-O {[%emt 0:00:14]} Rfc8 {[%emt 0:03:08]} 21. Rc2 {[%emt 0:02:03]} Nxc4 {[%emt 0:05:26]} 22. Bxc4 {[%emt 0:01:37]} Rxc4 {[%emt 0:00:06]} 23. Rfc1 {[%emt 0:02:05]} Qd5 {[%emt 0:01:02]} 24. Rxc4 {[%emt 0:00:48]} Rxc4 {[%emt 0:00:08]} 25. Rxc4 {[%emt 0:01:44]} Qxc4 {[%emt 0:00:05]} 26. Qd2 {[%emt 0:00:42]} Nh8 {[%emt 0:11:33]} 27. Bh4 {[%emt 0:01:29]} Nf7 {[%emt 0:00:45]} 28. Qe3 {[%emt 0:00:50]} Qc6 {[%emt 0:01:59]} 29. Qd4 {[%emt 0:02:11]} h6 {[%emt 0:01:07]} 30. Be7 {[%emt 0:00:21]} Qc1+ {[%emt 0:08:23]} 31. Kg2 {[%emt 0:00:34]} Qxa3 {[%emt 0:00:29]} 32. Qc4 {[%emt 0:00:05]} Qc5 {[%emt 0:00:20]} 33. Qxc5 {[%emt 0:00:05]} bxc5 {[%emt 0:00:04]} 34. Kf3 {[%emt 0:00:21]} a5 {[%emt 0:01:32]} 35. Ke3 {[%emt 0:00:08]} a4 {[%emt 0:00:26]} 36. Kd3 {[%emt 0:00:05]} g5 {[%emt 0:00:40]} 37. h4 {[%emt 0:00:17]} gxf4 {[%emt 0:02:15]} 38. Bf6 {[%emt 0:00:30]} h5 {[%emt 0:00:31]} 39. f3 {[%emt 0:00:47]} Kh7 {[%emt 0:00:14]} 40. Kc4 {[%emt 0:00:00]} Kg6 {[%emt 0:00:00]} 41. Kc3 {[%emt 0:07:47]} Nxd6 {[%emt 0:00:53]} 0-1

[Event "Reykjavik Open 2022"]
[Site "Reykjavik"]
[Date "2022.04.10"]
[Round "6.37"]
[White "Lohia, Sohum"]
[Black "Arnalds, Stefan"]
[Result "1-0"]
[ECO "B45"]
[WhiteElo "2251"]
[BlackElo "1902"]
[Annotator "RC"]
[PlyCount "97"]
[EventDate "2022.04.06"]
[EventCountry "ISL"]
[SourceTitle "playchess.com"]
[Source "ChessBase"]
[SourceQuality "1"]
[TimeControl "40/5400+30:1800+30"]

1. e4 {[%emt 0:00:03]} c5 {[%emt 0:12:18]} 2. Nf3 {[%emt 0:00:12]} e6 {[%emt 0:00:04]} 3. d4 {[%emt 0:00:10]} cxd4 {[%emt 0:00:12]} 4. Nxd4 {[%emt 0:00:08]} Nf6 {[%emt 0:00:07]} 5. Nc3 {[%emt 0:00:08]} Nc6 {[%emt 0:00:13]} 6. Ndb5 {[%emt 0:00:21]} Bb4 {[%emt 0:00:22]} 7. a3 {[%emt 0:00:13]} Bxc3+ {[%emt 0:00:05]} 8. Nxc3 {[%emt 0:00:07]} d5 {[%emt 0:00:10]} 9. Bd3 {[%emt 0:00:12]} dxe4 {[%emt 0:07:30]} 10. Nxe4 {[%emt 0:00:10]} Nxe4 {[%emt 0:02:09]} 11. Bxe4 {[%emt 0:00:07]} Qxd1+ {[%emt 0:01:19]} 12. Kxd1 {[%emt 0:00:07]} Bd7 {[%emt 0:21:58]} 13. Be3 {[%emt 0:00:56]} b6 {[%emt 0:17:57]} 14. Kc1 {[%emt 0:06:15]} f5 {[%emt 0:10:40]} 15. Bf3 {[%emt 0:01:05]} Rc8 {[%emt 0:00:56]} 16. b3 {[%emt 0:03:37]} e5 {[%emt 0:08:49]} 17. Re1 {[%emt 0:02:41]} O-O {[%emt 0:02:40]} 18. Bd5+ {[%emt 0:01:44]} Kh8 {[%emt 0:00:02]} 19. Kb2 {[%emt 0:04:14]} f4 {[%emt 0:07:10]} 20. Bd2 {[%emt 0:02:08]} Nd4 {[%emt 0:01:00]} 21. c3 {[%emt 0:13:39]} Bc6 {[%emt 0:03:59]} 22. cxd4 {[%emt 0:10:35]} Bxd5 {[%emt 0:00:05]} 23. dxe5 {[%emt 0:00:34]} Bxg2 {[%emt 0:00:07]} 24. e6 {[%emt 0:03:26]} Rce8 {[%emt 0:02:05]} 25. Rac1 {[%emt 0:05:26]} Bd5 {[%emt 0:00:15]} 26. e7 {[%emt 0:00:32]} Rf6 {[%emt 0:00:40]} 27. Rc7 {[%emt 0:02:20]} a5 {[%emt 0:00:36]} 28. Bc3 {[%emt 0:04:03]} Rg6 {[%emt 0:00:29]} 29. h4 {[%emt 0:03:05]} Kg8 {[%emt 0:00:16]} 30. Re5 {[%emt 0:01:41]} Rc6 {[%emt 0:00:46]} 31. Rxc6 {[%emt 0:15:53]} Bxc6 {[%emt 0:00:01]} 32. Bd4 {[%emt 0:00:01]} Kf7 {[%emt 0:00:58]} 33. Bxb6 {[%emt 0:02:39]} Rxe7 {[%emt 0:00:05]} 34. Rxa5 {[%emt 0:04:26]} Re2+ {[%emt 0:00:55]} 35. Kc3 {[%emt 0:00:35]} f3 {[%emt 0:00:26]} 36. a4 {[%emt 0:06:32]} Re4 {[%emt 0:00:23]} 37. Ra7+ {[%emt 0:02:00]} Re7 {[%emt 0:00:22]} 38. a5 {[%emt 0:02:36]} Ke6 {[%emt 0:00:51]} 39. Rxe7+ {[%emt 0:01:39]} Kxe7 {[%emt 0:00:00]} 40. Kc4 {[%emt 0:00:00]} Kd6 {[%emt 0:00:00]} 41. b4 {[%emt 0:05:40]} Bd5+ {[%emt 0:24:52]} 42. Kd4 {[%emt 0:01:07]} Bc6 {[%emt 0:00:54]} 43. Bc5+ {[%emt 0:00:28]} Kc7 {[%emt 0:00:29]} 44. Bf8 {[%emt 0:00:24]} g6 {[%emt 0:01:06]} 45. Kc5 {[%emt 0:00:17]} Be4 {[%emt 0:01:02]} 46. b5 {[%emt 0:00:32]} Kb7 {[%emt 0:01:35]} 47. a6+ {[%emt 0:01:07]} Ka7 {[%emt 0:01:27]} 48. Kb4 {[%emt 0:00:33]} Bd3 {[%emt 0:03:10]} 49. Ka5 {[%emt 0:00:20]} 1-0

[Event "Reykjavik Open 2022"]
[Site "Reykjavik"]
[Date "2022.04.10"]
[Round "6.38"]
[White "Gregersen, Einar"]
[Black "Player, Edmund C"]
[Result "0-1"]
[ECO "C01"]
[WhiteElo "1801"]
[BlackElo "2196"]
[Annotator "NA RC"]
[PlyCount "58"]
[EventDate "2022.04.06"]
[EventCountry "ISL"]
[SourceTitle "playchess.com"]
[Source "ChessBase"]
[SourceQuality "1"]
[TimeControl "40/5400+30:1800+30"]

1. e4 {[%emt 0:00:03]} e6 {[%emt 0:03:57]} 2. d4 {[%emt 0:00:09]} d5 {[%emt 0:00:16]} 3. exd5 {[%emt 0:00:15]} exd5 {[%emt 0:00:09]} 4. Bf4 {[%emt 0:00:06]} Bd6 {[%emt 0:11:15]} 5. Bxd6 {[%emt 0:00:08]} Qxd6 {[%emt 0:00:07]} 6. Nc3 {[%emt 0:00:25]} c6 {[%emt 0:02:55]} 7. Qd2 {[%emt 0:02:04]} Ne7 {[%emt 0:01:27]} 8. Nf3 {[%emt 0:03:02]} Bg4 {[%emt 0:12:52]} 9. Be2 {[%emt 0:03:05]} Nd7 {[%emt 0:02:10]} 10. O-O-O {[%emt 0:05:59]} O-O {[%emt 0:06:57]} 11. Rde1 {[%emt 0:10:43]} b5 {[%emt 0:07:28]} 12. Qg5 {[%emt 0:06:35]} Bxf3 {[%emt 0:10:14]} 13. Bxf3 {[%emt 0:01:03]} Rfe8 {[%emt 0:05:10]} 14. Re3 {[%emt 0:08:14]} h6 {[%emt 0:06:01]} 15. Qh5 {[%emt 0:09:05]} Nf6 {[%emt 0:05:50]} 16. Qe5 {[%emt 0:01:35]} Qd7 {[%emt 0:01:31]} 17. Qf4 {[%emt 0:03:36]} Nf5 {[%emt 0:06:40]} 18. Rxe8+ {[%emt 0:00:44]} Rxe8 {[%emt 0:00:09]} 19. h4 {[%emt 0:04:21]} Nd6 {[%emt 0:01:22]} 20. g4 {[%emt 0:03:28]} b4 {[%emt 0:05:51]} 21. Nd1 {[%emt 0:05:30]} Nfe4 {[%emt 0:00:24]} 22. Bg2 {[%emt 0:13:16]} Nb5 {[%emt 0:00:38]} 23. f3 {[%emt 0:03:39]} Nxd4 {[%emt 0:01:08]} 24. Qe3 {[%emt 0:03:30]} Ng3 {[%emt 0:00:31]} 25. Qd3 {[%emt 0:00:53]} Nde2+ {[%emt 0:00:32]} 26. Kb1 {[%emt 0:00:06]} Nxh1 {[%emt 0:00:06]} 27. Bxh1 {[%emt 0:00:12]} Nf4 {[%emt 0:00:33]} 28. Qd2 {[%emt 0:00:45]} Qd6 {[%emt 0:00:17]} 29. Ne3 {[%emt 0:00:13]} Qe5 {[%emt 0:00:10]} 0-1